[Event "Titled Tuesday Blitz May 16 Late 2023"]
[White "Yeritsyan, Hayk"]
[Black "Bruedigam, Martin"]
[WhiteFideId "13307320"]
[BlackFideId "24608033"]
[WhiteElo "2447"]
[BlackElo "2331"]
[Result "0-1"]
[Round "09"]
[TimeControl "180+2"]
[Date "2023.05.16"]
[WhiteClock "0:00:17"]
[BlackClock "0:01:25"]

1. d4 {[%clk 0:03:00]}  Nf6 {[%clk 0:02:58]} 2. Nf3 {[%clk 0:03:01]}  e6 {[%clk 0:02:57]} 3. e3 {[%clk 0:03:01]}  c5 {[%clk 0:02:57]} 4. Bd3 {[%clk 0:03:02]}  b6 {[%clk 0:02:57]} 5. c3 {[%clk 0:03:02]}  Bb7 {[%clk 0:02:58]} 6. Nbd2 {[%clk 0:03:03]}  d6 {[%clk 0:02:58]} 7. Qe2 {[%clk 0:03:03]}  Be7 {[%clk 0:02:58]} 8. O-O {[%clk 0:03:04]}  Nbd7 {[%clk 0:02:59]} 9. Re1 {[%clk 0:03:04]}  O-O {[%clk 0:02:59]} 10. e4 {[%clk 0:03:05]}  e5 {[%clk 0:02:50]} 11. dxe5 {[%clk 0:03:05]}  Nxe5 {[%clk 0:02:47]} 12. Nxe5 {[%clk 0:03:06]}  dxe5 {[%clk 0:02:48]} 13. Nc4 {[%clk 0:03:02]}  Qc7 {[%clk 0:02:46]} 14. Bg5 {[%clk 0:02:54]}  b5 {[%clk 0:02:45]} 15. Ne3 {[%clk 0:02:48]}  c4 {[%clk 0:02:45]} 16. Bc2 {[%clk 0:02:45]}  h6 {[%clk 0:02:46]} 17. Bxf6 {[%clk 0:02:44]}  Bxf6 {[%clk 0:02:47]} 18. Rad1 {[%clk 0:02:42]}  Rad8 {[%clk 0:02:45]} 19. Nd5 {[%clk 0:02:36]}  Qc6 {[%clk 0:02:39]} 20. Qf3 {[%clk 0:02:25]}  Rfe8 {[%clk 0:02:36]} 21. a3 {[%clk 0:02:22]}  a6 {[%clk 0:02:35]} 22. Rd2 {[%clk 0:02:07]}  Bg5 {[%clk 0:02:31]} 23. Rdd1 {[%clk 0:02:00]}  g6 {[%clk 0:02:27]} 24. g3 {[%clk 0:01:59]}  Rd6 {[%clk 0:02:17]} 25. h4 {[%clk 0:01:54]}  Bd8 {[%clk 0:02:16]} 26. h5 {[%clk 0:01:48]}  g5 {[%clk 0:02:16]} 27. Ne3 {[%clk 0:01:39]}  Bc8 {[%clk 0:02:09]} 28. Rxd6 {[%clk 0:01:37]}  Qxd6 {[%clk 0:02:10]} 29. Rd1 {[%clk 0:01:37]}  Qc6 {[%clk 0:02:04]} 30. Nf5 {[%clk 0:01:29]}  Bxf5 {[%clk 0:02:02]} 31. Qxf5 {[%clk 0:01:30]}  Bb6 {[%clk 0:02:01]} 32. Kg2 {[%clk 0:01:22]}  Re6 {[%clk 0:01:56]} 33. Rd5 {[%clk 0:01:16]}  Rf6 {[%clk 0:01:43]} 34. Rxe5 {[%clk 0:00:30]}  Rxf5 {[%clk 0:01:43]} 35. Rxf5 {[%clk 0:00:30]}  Qd7 {[%clk 0:01:32]} 36. Rd5 {[%clk 0:00:26]}  Qg4 {[%clk 0:01:32]} 37. Bd1 {[%clk 0:00:20]}  Qxe4+ {[%clk 0:01:31]} 38. Bf3 {[%clk 0:00:20]}  Qc2 {[%clk 0:01:30]} 39. Rd6 {[%clk 0:00:20]}  Qxf2+ {[%clk 0:01:29]} 40. Kh3 {[%clk 0:00:19]}  Bc7 {[%clk 0:01:25]} 41. Rf6 {[%clk 0:00:17]}  Qxg3# {[%clk 0:01:25]} 0-1


[Site "https://www.chess.com"]

[Event "Titled Tuesday Blitz May 16 Late 2023"]
[White "Kielinkei"]
[Black "Musovic, Armin"]
[BlackFideId "939935"]
[WhiteElo "2439"]
[BlackElo "2322"]
[Result "1/2-1/2"]
[Round "09"]
[TimeControl "180+2"]
[Date "2023.05.16"]
[WhiteClock "0:00:53"]
[BlackClock "0:01:52"]

1. e4 {[%clk 0:03:00]}  c6 {[%clk 0:03:00]} 2. d4 {[%clk 0:03:00]}  d5 {[%clk 0:03:00]} 3. Nc3 {[%clk 0:03:01]}  dxe4 {[%clk 0:03:01]} 4. Nxe4 {[%clk 0:03:02]}  Nf6 {[%clk 0:03:02]} 5. Nxf6+ {[%clk 0:03:02]}  exf6 {[%clk 0:03:02]} 6. Be3 {[%clk 0:03:03]}  Bd6 {[%clk 0:03:03]} 7. Bd3 {[%clk 0:03:02]}  O-O {[%clk 0:03:03]} 8. Ne2 {[%clk 0:03:02]}  Re8 {[%clk 0:03:03]} 9. O-O {[%clk 0:03:03]}  Nd7 {[%clk 0:03:04]} 10. c4 {[%clk 0:03:03]}  Nf8 {[%clk 0:03:04]} 11. Qc2 {[%clk 0:03:03]}  Bg4 {[%clk 0:03:04]} 12. Rfe1 {[%clk 0:03:03]}  Rc8 {[%clk 0:03:02]} 13. h3 {[%clk 0:02:47]}  Be6 {[%clk 0:02:59]} 14. Qc3 {[%clk 0:02:41]}  Ng6 {[%clk 0:02:53]} 15. Rad1 {[%clk 0:02:33]}  a5 {[%clk 0:02:48]} 16. a3 {[%clk 0:02:32]}  b5 {[%clk 0:02:49]} 17. Qc2 {[%clk 0:02:01]}  Bb8 {[%clk 0:02:42]} 18. Bxg6 {[%clk 0:00:55]}  hxg6 {[%clk 0:02:40]} 19. cxb5 {[%clk 0:00:54]}  cxb5 {[%clk 0:02:40]} 20. Qd2 {[%clk 0:00:53]}  Bb3 {[%clk 0:02:33]} 21. Rc1 {[%clk 0:00:53]}  Rxc1 {[%clk 0:02:29]} 22. Rxc1 {[%clk 0:00:51]}  Bc4 {[%clk 0:02:20]} 23. Nf4 {[%clk 0:00:41]}  Bxf4 {[%clk 0:02:03]} 24. Bxf4 {[%clk 0:00:40]}  Re2 {[%clk 0:02:04]} 25. Qc3 {[%clk 0:00:34]}  a4 {[%clk 0:02:04]} 26. Be3 {[%clk 0:00:29]}  Qd5 {[%clk 0:01:49]} 27. Re1 {[%clk 0:00:29]}  Rxe1+ {[%clk 0:01:45]} 28. Qxe1 {[%clk 0:00:29]}  Qe4 {[%clk 0:01:45]} 29. Qd2 {[%clk 0:00:25]}  g5 {[%clk 0:01:43]} 30. f3 {[%clk 0:00:25]}  Qb1+ {[%clk 0:01:41]} 31. Qc1 {[%clk 0:00:24]}  Qd3 {[%clk 0:01:40]} 32. Qd2 {[%clk 0:00:24]}  Qf1+ {[%clk 0:01:38]} 33. Kh2 {[%clk 0:00:24]}  Bd5 {[%clk 0:01:39]} 34. Qf2 {[%clk 0:00:22]}  Qb1 {[%clk 0:01:37]} 35. Qd2 {[%clk 0:00:21]}  Kh7 {[%clk 0:01:34]} 36. Bf2 {[%clk 0:00:19]}  Kg6 {[%clk 0:01:33]} 37. h4 {[%clk 0:00:19]}  gxh4 {[%clk 0:01:31]} 38. Bxh4 {[%clk 0:00:20]}  Qf5 {[%clk 0:01:23]} 39. Bf2 {[%clk 0:00:19]}  Qh5+ {[%clk 0:01:22]} 40. Kg1 {[%clk 0:00:18]}  Kh7 {[%clk 0:01:22]} 41. Qd3+ {[%clk 0:00:18]}  Kg8 {[%clk 0:01:22]} 42. Qxb5 {[%clk 0:00:18]}  Kh7 {[%clk 0:01:18]} 43. Qxa4 {[%clk 0:00:17]}  Qg6 {[%clk 0:01:19]} 44. Qd1 {[%clk 0:00:13]}  f5 {[%clk 0:01:16]} 45. a4 {[%clk 0:00:12]}  Qa6 {[%clk 0:01:16]} 46. b3 {[%clk 0:00:08]}  Qb6 {[%clk 0:01:15]} 47. Qd3 {[%clk 0:00:05]}  g6 {[%clk 0:01:14]} 48. Qb5 {[%clk 0:00:05]}  Qe6 {[%clk 0:01:11]} 49. b4 {[%clk 0:00:04]}  Bc4 {[%clk 0:01:09]} 50. Qe5 {[%clk 0:00:04]}  Qc8 {[%clk 0:01:04]} 51. b5 {[%clk 0:00:03]}  Bb3 {[%clk 0:01:04]} 52. d5 {[%clk 0:00:03]}  Bxa4 {[%clk 0:01:02]} 53. Bd4 {[%clk 0:00:03]}  Qc1+ {[%clk 0:01:01]} 54. Kh2 {[%clk 0:00:04]}  Qh6+ {[%clk 0:01:00]} 55. Kg3 {[%clk 0:00:04]}  Qf8 {[%clk 0:00:59]} 56. Kf2 {[%clk 0:00:02]}  Bxb5 {[%clk 0:00:59]} 57. Qh2+ {[%clk 0:00:02]}  Qh6 {[%clk 0:00:59]} 58. Qxh6+ {[%clk 0:00:02]}  Kxh6 {[%clk 0:00:59]} 59. d6 {[%clk 0:00:03]}  Kg5 {[%clk 0:00:59]} 60. Ke3 {[%clk 0:00:03]}  Bc6 {[%clk 0:00:59]} 61. Be5 {[%clk 0:00:03]}  f4+ {[%clk 0:00:55]} 62. Bxf4+ {[%clk 0:00:04]}  Kf5 {[%clk 0:00:56]} 63. Bh2 {[%clk 0:00:04]}  Ke6 {[%clk 0:00:56]} 64. Kd4 {[%clk 0:00:04]}  f6 {[%clk 0:00:56]} 65. Kc5 {[%clk 0:00:05]}  Kd7 {[%clk 0:00:56]} 66. Kd4 {[%clk 0:00:05]}  Ke6 {[%clk 0:00:56]} 67. Ke3 {[%clk 0:00:06]}  Bb7 {[%clk 0:00:56]} 68. Kf4 {[%clk 0:00:06]}  Bc6 {[%clk 0:00:56]} 69. g3 {[%clk 0:00:06]}  Bb7 {[%clk 0:00:55]} 70. Ke3 {[%clk 0:00:06]}  Bc6 {[%clk 0:00:55]} 71. g4 {[%clk 0:00:06]}  f5 {[%clk 0:00:54]} 72. gxf5+ {[%clk 0:00:06]}  gxf5 {[%clk 0:00:55]} 73. f4 {[%clk 0:00:05]}  Kd7 {[%clk 0:00:55]} 74. Kd4 {[%clk 0:00:06]}  Be4 {[%clk 0:00:56]} 75. Ke5 {[%clk 0:00:06]}  Bb1 {[%clk 0:00:57]} 76. Bg3 {[%clk 0:00:06]}  Be4 {[%clk 0:00:57]} 77. Bh4 {[%clk 0:00:07]}  Bb1 {[%clk 0:00:58]} 78. Bf6 {[%clk 0:00:08]}  Be4 {[%clk 0:00:59]} 79. Bg7 {[%clk 0:00:08]}  Bb1 {[%clk 0:00:59]} 80. Bh8 {[%clk 0:00:09]}  Be4 {[%clk 0:01:00]} 81. Bg7 {[%clk 0:00:10]}  Bb1 {[%clk 0:01:01]} 82. Bh6 {[%clk 0:00:11]}  Be4 {[%clk 0:01:01]} 83. Bg5 {[%clk 0:00:12]}  Bb1 {[%clk 0:01:02]} 84. Bh4 {[%clk 0:00:13]}  Bc2 {[%clk 0:01:02]} 85. Be1 {[%clk 0:00:14]}  Be4 {[%clk 0:01:03]} 86. Bd2 {[%clk 0:00:15]}  Bb1 {[%clk 0:01:04]} 87. Bc1 {[%clk 0:00:16]}  Be4 {[%clk 0:01:04]} 88. Bb2 {[%clk 0:00:17]}  Bb1 {[%clk 0:01:05]} 89. Ba1 {[%clk 0:00:17]}  Be4 {[%clk 0:01:05]} 90. Bc3 {[%clk 0:00:18]}  Bb1 {[%clk 0:01:06]} 91. Bb4 {[%clk 0:00:19]}  Kc6 {[%clk 0:01:06]} 92. Kd4 {[%clk 0:00:20]}  Kd7 {[%clk 0:01:04]} 93. Ke5 {[%clk 0:00:20]}  Bc2 {[%clk 0:01:04]} 94. Bc3 {[%clk 0:00:20]}  Be4 {[%clk 0:01:05]} 95. Bd4 {[%clk 0:00:20]}  Bb1 {[%clk 0:01:04]} 96. Bc5 {[%clk 0:00:21]}  Bc2 {[%clk 0:01:05]} 97. Kd5 {[%clk 0:00:21]}  Bb1 {[%clk 0:01:05]} 98. Kd4 {[%clk 0:00:22]}  Bc2 {[%clk 0:01:06]} 99. Ba3 {[%clk 0:00:22]}  Bb1 {[%clk 0:01:07]} 100. Kc3 {[%clk 0:00:22]}  Be4 {[%clk 0:01:08]} 101. Kd2 {[%clk 0:00:23]}  Ke6 {[%clk 0:01:07]} 102. Ke3 {[%clk 0:00:23]}  Kd7 {[%clk 0:01:07]} 103. Kf2 {[%clk 0:00:23]}  Kc6 {[%clk 0:01:07]} 104. Kg3 {[%clk 0:00:23]}  Kd7 {[%clk 0:01:08]} 105. Kh4 {[%clk 0:00:24]}  Ke6 {[%clk 0:01:08]} 106. Kg5 {[%clk 0:00:24]}  Kd7 {[%clk 0:01:09]} 107. Kg6 {[%clk 0:00:24]}  Bb1 {[%clk 0:01:10]} 108. Kf6 {[%clk 0:00:25]}  Bc2 {[%clk 0:01:11]} 109. Ke5 {[%clk 0:00:24]}  Bb1 {[%clk 0:01:12]} 110. Kd4 {[%clk 0:00:24]}  Bc2 {[%clk 0:01:13]} 111. Kc3 {[%clk 0:00:24]}  Be4 {[%clk 0:01:14]} 112. Bb4 {[%clk 0:00:23]}  Kc6 {[%clk 0:01:14]} 113. d7 {[%clk 0:00:22]}  Kxd7 {[%clk 0:01:15]} 114. Kd4 {[%clk 0:00:23]}  Kc6 {[%clk 0:01:15]} 115. Ke5 {[%clk 0:00:24]}  Kb5 {[%clk 0:01:15]} 116. Be1 {[%clk 0:00:24]}  Kc4 {[%clk 0:01:16]} 117. Bh4 {[%clk 0:00:25]}  Kd3 {[%clk 0:01:17]} 118. Bd8 {[%clk 0:00:25]}  Ke2 {[%clk 0:01:18]} 119. Bc7 {[%clk 0:00:26]}  Kf3 {[%clk 0:01:19]} 120. Bd6 {[%clk 0:00:26]}  Kg4 {[%clk 0:01:19]} 121. Bb8 {[%clk 0:00:27]}  Kh5 {[%clk 0:01:20]} 122. Ba7 {[%clk 0:00:28]}  Kh6 {[%clk 0:01:21]} 123. Bg1 {[%clk 0:00:28]}  Kg6 {[%clk 0:01:22]} 124. Bd4 {[%clk 0:00:29]}  Kh5 {[%clk 0:01:23]} 125. Be3 {[%clk 0:00:29]}  Kg4 {[%clk 0:01:24]} 126. Bc1 {[%clk 0:00:30]}  Kh3 {[%clk 0:01:24]} 127. Bb2 {[%clk 0:00:31]}  Kg2 {[%clk 0:01:25]} 128. Bd4 {[%clk 0:00:31]}  Kf1 {[%clk 0:01:26]} 129. Bc5 {[%clk 0:00:31]}  Kg2 {[%clk 0:01:27]} 130. Bd6 {[%clk 0:00:32]}  Kf3 {[%clk 0:01:27]} 131. Kd4 {[%clk 0:00:32]}  Ke2 {[%clk 0:01:28]} 132. Be5 {[%clk 0:00:32]}  Kd2 {[%clk 0:01:29]} 133. Kc4 {[%clk 0:00:32]}  Ke3 {[%clk 0:01:30]} 134. Kb4 {[%clk 0:00:32]}  Kf3 {[%clk 0:01:30]} 135. Kb5 {[%clk 0:00:33]}  Kg4 {[%clk 0:01:31]} 136. Kc5 {[%clk 0:00:33]}  Kh5 {[%clk 0:01:32]} 137. Kd6 {[%clk 0:00:34]}  Kg6 {[%clk 0:01:33]} 138. Ke7 {[%clk 0:00:35]}  Kh5 {[%clk 0:01:34]} 139. Kf6 {[%clk 0:00:36]}  Kg4 {[%clk 0:01:35]} 140. Kg6 {[%clk 0:00:36]}  Kf3 {[%clk 0:01:35]} 141. Kh6 {[%clk 0:00:37]}  Ke2 {[%clk 0:01:36]} 142. Kg6 {[%clk 0:00:38]}  Kd3 {[%clk 0:01:37]} 143. Kg5 {[%clk 0:00:39]}  Kc4 {[%clk 0:01:38]} 144. Kh4 {[%clk 0:00:40]}  Kb5 {[%clk 0:01:39]} 145. Kg3 {[%clk 0:00:41]}  Kc6 {[%clk 0:01:40]} 146. Kf2 {[%clk 0:00:42]}  Kd5 {[%clk 0:01:41]} 147. Ke3 {[%clk 0:00:43]}  Kc4 {[%clk 0:01:42]} 148. Kd2 {[%clk 0:00:43]}  Kb3 {[%clk 0:01:42]} 149. Ke2 {[%clk 0:00:44]}  Kc2 {[%clk 0:01:42]} 150. Ke3 {[%clk 0:00:45]}  Kd1 {[%clk 0:01:42]} 151. Kd4 {[%clk 0:00:46]}  Kd2 {[%clk 0:01:43]} 152. Kc5 {[%clk 0:00:47]}  Kd3 {[%clk 0:01:44]} 153. Kd6 {[%clk 0:00:47]}  Kc4 {[%clk 0:01:44]} 154. Ke6 {[%clk 0:00:48]}  Kc5 {[%clk 0:01:45]} 155. Kf6 {[%clk 0:00:49]}  Kc6 {[%clk 0:01:46]} 156. Kg6 {[%clk 0:00:50]}  Kd7 {[%clk 0:01:47]} 157. Kf7 {[%clk 0:00:51]}  Kc6 {[%clk 0:01:47]} 158. Kf6 {[%clk 0:00:51]}  Bd3 {[%clk 0:01:47]} 159. Kg5 {[%clk 0:00:52]}  Be4 {[%clk 0:01:48]} 160. Bf6 {[%clk 0:00:52]}  Kd5 {[%clk 0:01:49]} 161. Be5 {[%clk 0:00:53]}  Bd3 {[%clk 0:01:50]} 162. Kh4 {[%clk 0:00:54]}  Be4 {[%clk 0:01:51]} 163. Bb8 {[%clk 0:00:53]}  Ke6 {[%clk 0:01:52]} 1/2-1/2


[Site "https://www.chess.com"]

[Event "Titled Tuesday Blitz May 16 Late 2023"]
[White "Weber, Samuel"]
[Black "Guerra Tulcan, Lenin"]
[WhiteFideId "12924008"]
[BlackFideId "3601382"]
[WhiteElo "2162"]
[BlackElo "2368"]
[Result "0-1"]
[Round "09"]
[TimeControl "180+2"]
[Date "2023.05.16"]
[WhiteClock "0:01:50"]
[BlackClock "0:02:03"]

1. b3 {[%clk 0:02:36]}  e5 {[%clk 0:02:59]} 2. Bb2 {[%clk 0:02:37]}  d6 {[%clk 0:02:59]} 3. c4 {[%clk 0:02:38]}  Nf6 {[%clk 0:02:59]} 4. e3 {[%clk 0:02:38]}  Be7 {[%clk 0:02:59]} 5. Nc3 {[%clk 0:02:39]}  O-O {[%clk 0:02:59]} 6. g3 {[%clk 0:02:39]}  c6 {[%clk 0:02:59]} 7. Bg2 {[%clk 0:02:40]}  Be6 {[%clk 0:02:59]} 8. d4 {[%clk 0:02:39]}  exd4 {[%clk 0:02:59]} 9. exd4 {[%clk 0:02:40]}  d5 {[%clk 0:03:00]} 10. c5 {[%clk 0:02:40]}  Re8 {[%clk 0:02:59]} 11. Nge2 {[%clk 0:02:40]}  Qc8 {[%clk 0:02:59]} 12. O-O {[%clk 0:02:40]}  Bh3 {[%clk 0:02:58]} 13. Nf4 {[%clk 0:02:41]}  Bxg2 {[%clk 0:02:58]} 14. Kxg2 {[%clk 0:02:42]}  Nbd7 {[%clk 0:02:58]} 15. Nce2 {[%clk 0:02:41]}  Nf8 {[%clk 0:02:58]} 16. Qd3 {[%clk 0:02:41]}  a5 {[%clk 0:02:52]} 17. a3 {[%clk 0:02:40]}  g5 {[%clk 0:02:44]} 18. Nh3 {[%clk 0:02:29]}  h6 {[%clk 0:02:44]} 19. f3 {[%clk 0:02:28]}  Ng6 {[%clk 0:02:39]} 20. Nf2 {[%clk 0:02:28]}  Bf8 {[%clk 0:02:39]} 21. Rae1 {[%clk 0:02:27]}  Qd7 {[%clk 0:02:38]} 22. Nc3 {[%clk 0:02:24]}  Bg7 {[%clk 0:02:37]} 23. Na4 {[%clk 0:02:25]}  Rxe1 {[%clk 0:02:34]} 24. Rxe1 {[%clk 0:02:22]}  Re8 {[%clk 0:02:34]} 25. Nb6 {[%clk 0:02:20]}  Qd8 {[%clk 0:02:34]} 26. Qd2 {[%clk 0:02:15]}  Rxe1 {[%clk 0:02:10]} 27. Qxe1 {[%clk 0:02:15]}  Qe7 {[%clk 0:02:11]} 28. Qxa5 {[%clk 0:02:08]}  g4 {[%clk 0:02:11]} 29. fxg4 {[%clk 0:02:05]}  Qe2 {[%clk 0:02:06]} 30. Bc3 {[%clk 0:01:58]}  Nxg4 {[%clk 0:02:04]} 31. Be1 {[%clk 0:01:52]}  Ne3+ {[%clk 0:02:03]} 32. Kh3 {[%clk 0:01:50]}  Qh5# {[%clk 0:02:03]} 0-1


[Site "https://www.chess.com"]

[Event "Titled Tuesday Blitz May 16 Late 2023"]
[White "Martinez, Ayelen"]
[Black "Golubev, Mikhail"]
[WhiteFideId "118702"]
[BlackFideId "14100983"]
[WhiteElo "2125"]
[BlackElo "2374"]
[Result "1-0"]
[Round "09"]
[TimeControl "180+2"]
[Date "2023.05.16"]
[WhiteClock "0:00:06"]
[BlackClock "0:00:00"]

1. e4 {[%clk 0:03:00]}  c5 {[%clk 0:02:58]} 2. Nf3 {[%clk 0:03:00]}  d6 {[%clk 0:02:58]} 3. d4 {[%clk 0:03:01]}  Nf6 {[%clk 0:02:59]} 4. Nc3 {[%clk 0:03:01]}  cxd4 {[%clk 0:02:59]} 5. Nxd4 {[%clk 0:03:01]}  Nc6 {[%clk 0:02:59]} 6. Bg5 {[%clk 0:03:01]}  e6 {[%clk 0:02:58]} 7. Qd2 {[%clk 0:03:00]}  a6 {[%clk 0:02:58]} 8. O-O-O {[%clk 0:02:59]}  Bd7 {[%clk 0:02:58]} 9. f4 {[%clk 0:02:57]}  Be7 {[%clk 0:02:57]} 10. Bc4 {[%clk 0:02:44]}  b5 {[%clk 0:02:47]} 11. Nxc6 {[%clk 0:01:50]}  Bxc6 {[%clk 0:02:48]} 12. Bd3 {[%clk 0:01:50]}  b4 {[%clk 0:02:21]} 13. Ne2 {[%clk 0:01:49]}  Nxe4 {[%clk 0:02:09]} 14. Bxe4 {[%clk 0:01:50]}  Bxe4 {[%clk 0:02:04]} 15. Qxb4 {[%clk 0:01:47]}  Bxg5 {[%clk 0:01:33]} 16. Qxe4 {[%clk 0:01:42]}  Be7 {[%clk 0:01:32]} 17. Qc6+ {[%clk 0:01:41]}  Kf8 {[%clk 0:01:32]} 18. f5 {[%clk 0:01:37]}  Rc8 {[%clk 0:01:27]} 19. Qb7 {[%clk 0:01:21]}  Qc7 {[%clk 0:01:14]} 20. Qb3 {[%clk 0:01:02]}  Rb8 {[%clk 0:00:39]} 21. Qd3 {[%clk 0:01:02]}  Bf6 {[%clk 0:00:29]} 22. c3 {[%clk 0:00:56]}  Ke7 {[%clk 0:00:27]} 23. fxe6 {[%clk 0:00:51]}  fxe6 {[%clk 0:00:28]} 24. Rhe1 {[%clk 0:00:40]}  Rhe8 {[%clk 0:00:28]} 25. Qxh7 {[%clk 0:00:28]}  Qc4 {[%clk 0:00:25]} 26. Qd3 {[%clk 0:00:20]}  Qxd3 {[%clk 0:00:25]} 27. Rxd3 {[%clk 0:00:21]}  Be5 {[%clk 0:00:20]} 28. Kc2 {[%clk 0:00:18]}  Rf8 {[%clk 0:00:19]} 29. g3 {[%clk 0:00:15]}  Rf2 {[%clk 0:00:19]} 30. Kc1 {[%clk 0:00:14]}  Rxh2 {[%clk 0:00:18]} 31. Nd4 {[%clk 0:00:12]}  Rbxb2 {[%clk 0:00:14]} 32. Nc6+ {[%clk 0:00:11]}  Kf6 {[%clk 0:00:11]} 33. Rf3+ {[%clk 0:00:11]}  Kg6 {[%clk 0:00:08]} 34. Nxe5+ {[%clk 0:00:10]}  dxe5 {[%clk 0:00:08]} 35. Rxe5 {[%clk 0:00:11]}  Rxa2 {[%clk 0:00:06]} 36. Rxe6+ {[%clk 0:00:11]}  Kh7 {[%clk 0:00:06]} 37. Kb1 {[%clk 0:00:08]}  Rab2+ {[%clk 0:00:06]} 38. Ka1 {[%clk 0:00:08]}  Rbg2 {[%clk 0:00:05]} 39. Re1 {[%clk 0:00:07]}  Ra2+ {[%clk 0:00:04]} 40. Kb1 {[%clk 0:00:08]}  a5 {[%clk 0:00:04]} 41. Rf5 {[%clk 0:00:07]}  Kg6 {[%clk 0:00:02]} 42. Rb5 {[%clk 0:00:06]}  a4 {[%clk 0:00:00]} 43. Re6+ {[%clk 0:00:06]} 1-0


[Site "https://www.chess.com"]

[Event "Titled Tuesday Blitz May 16 Late 2023"]
[White "Kev4444444444"]
[Black "Molenda, Marcin"]
[BlackFideId "1173065"]
[WhiteElo "2171"]
[BlackElo "2286"]
[Result "0-1"]
[Round "09"]
[TimeControl "180+2"]
[Date "2023.05.16"]
[WhiteClock "0:00:09"]
[BlackClock "0:01:28"]

1. g3 {[%clk 0:03:00]}  d5 {[%clk 0:02:56]} 2. Bg2 {[%clk 0:03:01]}  e5 {[%clk 0:02:56]} 3. c4 {[%clk 0:02:55]}  d4 {[%clk 0:02:53]} 4. d3 {[%clk 0:02:49]}  h5 {[%clk 0:02:51]} 5. Nf3 {[%clk 0:02:47]}  Nc6 {[%clk 0:02:50]} 6. O-O {[%clk 0:02:46]}  Be7 {[%clk 0:02:47]} 7. h3 {[%clk 0:02:41]}  h4 {[%clk 0:02:47]} 8. g4 {[%clk 0:02:25]}  a5 {[%clk 0:02:43]} 9. Ne1 {[%clk 0:02:21]}  f5 {[%clk 0:02:41]} 10. gxf5 {[%clk 0:02:19]}  Bxf5 {[%clk 0:02:42]} 11. f4 {[%clk 0:02:18]}  Qd7 {[%clk 0:02:38]} 12. Kh2 {[%clk 0:02:14]}  Nf6 {[%clk 0:02:34]} 13. fxe5 {[%clk 0:02:12]}  Nxe5 {[%clk 0:02:34]} 14. Bf4 {[%clk 0:02:11]}  Bd6 {[%clk 0:02:33]} 15. c5 {[%clk 0:01:56]}  Neg4+ {[%clk 0:02:26]} 16. hxg4 {[%clk 0:01:55]}  Nxg4+ {[%clk 0:02:26]} 17. Kh1 {[%clk 0:01:41]}  Bxf4 {[%clk 0:02:26]} 18. Rxf4 {[%clk 0:01:38]}  Ne3 {[%clk 0:02:20]} 19. Qb3 {[%clk 0:01:31]}  g5 {[%clk 0:02:14]} 20. Qxb7 {[%clk 0:01:23]}  O-O {[%clk 0:02:15]} 21. Rf2 {[%clk 0:01:09]}  Bh3 {[%clk 0:02:14]} 22. Rxf8+ {[%clk 0:00:44]}  Rxf8 {[%clk 0:02:15]} 23. Bf3 {[%clk 0:00:44]}  g4 {[%clk 0:01:59]} 24. Nd2 {[%clk 0:00:44]}  gxf3 {[%clk 0:01:59]} 25. Nexf3 {[%clk 0:00:41]}  Qg4 {[%clk 0:01:55]} 26. Ne1 {[%clk 0:00:13]}  Rf2 {[%clk 0:01:37]} 27. Qa8+ {[%clk 0:00:10]}  Kg7 {[%clk 0:01:34]} 28. Qe4 {[%clk 0:00:10]}  Bg2+ {[%clk 0:01:27]} 29. Nxg2 {[%clk 0:00:10]}  Qh3+ {[%clk 0:01:27]} 30. Kg1 {[%clk 0:00:09]}  Rxg2+ {[%clk 0:01:27]} 31. Qxg2+ {[%clk 0:00:09]}  Qxg2# {[%clk 0:01:28]} 0-1


[Site "https://www.chess.com"]

[Event "Titled Tuesday Blitz May 16 Late 2023"]
[White "Gatterer, Florian"]
[Black "Kim, Sergey"]
[WhiteFideId "811688"]
[BlackFideId "13700570"]
[WhiteElo "2221"]
[BlackElo "2576"]
[Result "0-1"]
[Round "09"]
[TimeControl "180+2"]
[Date "2023.05.16"]
[WhiteClock "0:00:00"]
[BlackClock "0:01:03"]

1. Nf3 {[%clk 0:03:00]}  Nf6 {[%clk 0:02:59]} 2. g3 {[%clk 0:03:01]}  g6 {[%clk 0:02:59]} 3. b3 {[%clk 0:03:01]}  Bg7 {[%clk 0:02:59]} 4. Bb2 {[%clk 0:03:02]}  d6 {[%clk 0:03:00]} 5. d4 {[%clk 0:03:01]}  O-O {[%clk 0:03:00]} 6. Bg2 {[%clk 0:03:01]}  e5 {[%clk 0:03:00]} 7. dxe5 {[%clk 0:02:56]}  Nfd7 {[%clk 0:03:00]} 8. c4 {[%clk 0:02:54]}  dxe5 {[%clk 0:03:00]} 9. Nc3 {[%clk 0:02:39]}  Nc6 {[%clk 0:02:53]} 10. e3 {[%clk 0:02:33]}  e4 {[%clk 0:02:49]} 11. Nd2 {[%clk 0:02:26]}  f5 {[%clk 0:02:48]} 12. a3 {[%clk 0:02:18]}  Nde5 {[%clk 0:02:46]} 13. Bf1 {[%clk 0:02:10]}  Nd3+ {[%clk 0:02:42]} 14. Bxd3 {[%clk 0:02:08]}  Qxd3 {[%clk 0:02:42]} 15. Rc1 {[%clk 0:02:04]}  Ne5 {[%clk 0:02:41]} 16. Nd5 {[%clk 0:01:35]}  c6 {[%clk 0:02:29]} 17. Ne7+ {[%clk 0:01:09]}  Kh8 {[%clk 0:02:24]} 18. Bxe5 {[%clk 0:01:06]}  Bxe5 {[%clk 0:02:22]} 19. Nxc8 {[%clk 0:01:06]}  Raxc8 {[%clk 0:02:20]} 20. Qc2 {[%clk 0:00:59]}  Rfd8 {[%clk 0:02:13]} 21. Qxd3 {[%clk 0:00:59]}  Rxd3 {[%clk 0:02:12]} 22. Ke2 {[%clk 0:00:47]}  Bb2 {[%clk 0:01:55]} 23. Rc2 {[%clk 0:00:46]}  Bxa3 {[%clk 0:01:55]} 24. Ra1 {[%clk 0:00:46]}  Bb4 {[%clk 0:01:49]} 25. Rxa7 {[%clk 0:00:42]}  Rcd8 {[%clk 0:01:49]} 26. Nf1 {[%clk 0:00:10]}  Rd1 {[%clk 0:01:29]} 27. f3 {[%clk 0:00:10]}  Re1+ {[%clk 0:01:21]} 28. Kf2 {[%clk 0:00:10]}  Rdd1 {[%clk 0:01:20]} 29. Rxb7 {[%clk 0:00:07]}  Rxf1+ {[%clk 0:01:18]} 30. Kg2 {[%clk 0:00:07]}  exf3+ {[%clk 0:01:16]} 31. Kh3 {[%clk 0:00:07]}  c5 {[%clk 0:01:10]} 32. Ra2 {[%clk 0:00:07]}  Ra1 {[%clk 0:01:10]} 33. Rb8+ {[%clk 0:00:05]}  Kg7 {[%clk 0:01:09]} 34. Rb7+ {[%clk 0:00:05]}  Kh6 {[%clk 0:01:08]} 35. Rxa1 {[%clk 0:00:05]}  Rxa1 {[%clk 0:01:07]} 36. g4 {[%clk 0:00:06]}  fxg4+ {[%clk 0:01:03]} 37. Kxg4 {[%clk 0:00:00]}  f2 {[%clk 0:01:03]} 0-1


[Site "https://www.chess.com"]